bitfinex-derivatives/quotes_ETHF0:USTF0_20251119
["timestamp","ask_amount","ask_price","bid_price","bid_amount"]
[1763561275448,0.00491536,3054.2,3054.1,1.43052]
[1763561275643,0.53571536,3054.2,3054.1,0.53082]
[1763561275840,0.53571536,3054.2,3054.1,0.8997]
[1763561276046,0.53082,3054.1,3054.0,0.5542]
[1763561276449,3.6219,3054.0,3052.6,3.2078]
[1763561276741,0.5312,3051.9,3051.8,3.2078]
[1763561276941,0.5312,3051.9,3051.6,0.5542]
[1763561276942,3.2078,3052.0,3051.3,3.2078]
[1763561277353,3.2078,3053.0,3052.0,0.5542]
[1763561277649,3.21180002,3053.0,3052.8,0.53104]
[1763561277846,0.00400002,3053.0,3052.8,0.53104]
[1763561278246,3.2078,3054.0,3053.4,0.5542]
[1763561278451,3.2078,3054.0,3053.8,0.53087]
[1763561279145,3.21153279,3054.0,3053.8,0.53087]
[1763561280154,0.5313,3055.5,3053.9,9.2078]
[1763561280446,0.53057,3055.6,3055.1,3.73844]
[1763561280747,3.2078,3057.2,3055.5,3.762]
[1763561280946,3.2078,3057.2,3056.5,3.2078]
[1763561281141,3.2078,3056.6,3056.5,0.00736182]
[1763561281544,0.5305,3056.0,3055.4,3.2078]
[1763561281745,0.5305,3056.0,3054.1,0.3219]
[1763561281746,0.53064,3055.2,3054.6,3.2078]
[1763561282053,0.5434,3055.2,3054.2,3.2078]
[1763561282240,0.53069,3054.9,3054.2,3.73859]
[1763561282439,0.53069,3054.9,3053.4,0.5542]
[1763561282440,3.2078,3054.9,3053.7,3.2078]
[1763561282644,0.00490701,3054.6,3054.2,3.2078]
[1763561282846,0.00490701,3054.6,3054.5,3.2078]
[1763561283154,3.21270701,3054.6,3054.0,0.00490701]
[1763561283354,0.53075,3054.5,3054.0,0.00490701]
[1763561283740,0.53078,3054.4,3054.1,3.2078]
[1763561284454,0.00490701,3054.6,3054.1,3.2078]
[1763561284654,0.00490701,3054.6,3054.0,0.00490701]
[1763561284655,0.00490701,3054.6,3054.5,3.2078]
[1763561287158,0.00365488,3054.9,3054.7,0.53071]
[1763561288558,0.00365488,3054.9,3054.5,3.2078]
[1763561288748,0.00365488,3054.9,3054.7,0.53071]
[1763561288954,0.00365488,3054.9,3054.5,3.2078]
[1763561289151,0.53072,3054.7,3054.5,3.2078]
[1763561289561,0.53072,3054.7,3054.1,3.2078]
[1763561289562,0.5308,3054.2,3054.1,3.2078]
[1763561289768,0.5308,3054.2,3054.0,0.00490701]
[1763561290067,3.2078,3054.4,3054.0,0.00490701]
[1763561290269,0.5308,3054.2,3054.0,0.00490701]
[1763561290470,3.7512,3054.4,3054.0,0.00490701]
[1763561290669,0.5308,3054.2,3054.0,0.00490701]
[1763561290968,3.2078,3054.4,3054.0,0.00490701]
[1763561291163,0.5308,3054.2,3054.0,0.00490701]
[1763561291956,3.2078,3054.4,3053.3,3.2078]
[1763561291957,3.7512,3054.4,3053.3,3.2078]
[1763561292163,0.53094,3053.4,3053.3,3.2078]
[1763561292371,3.2078,3054.0,3053.3,3.2078]
[1763561292571,3.2078,3054.0,3053.4,0.53093]
[1763561292769,0.53091,3053.6,3053.3,3.2078]
[1763561292970,3.2078,3054.0,3053.3,3.21179723]
[1763561293469,0.53093,3053.5,3053.3,3.21179723]
[1763561293669,0.53094,3053.4,3053.3,3.21179723]
[1763561293971,0.53094,3053.4,3052.0,41.1219]
[1763561293972,3.7512,3053.6,3052.4,3.2078]
[1763561294266,3.2078,3054.0,3053.3,3.2078]
[1763561294461,3.2078,3054.0,3053.5,0.53092]
[1763561294662,3.7512,3054.4,3053.3,3.2078]
[1763561294859,0.00490701,3054.2,3053.7,3.2078]
[1763561295272,0.53086,3053.9,3053.7,3.2078]
[1763561295566,0.00490701,3054.2,3053.4,0.53094]
[1763561295773,0.53091,3053.6,3053.4,0.53094]
[1763561295970,0.00490701,3054.2,3053.4,0.53094]
[1763561296171,0.00490701,3054.2,3053.3,0.00358381]
[1763561296372,3.2078,3053.9,3053.3,0.00358381]
[1763561296970,0.53094,3053.4,3053.3,0.00358381]
[1763561297166,3.2078,3053.9,3053.3,0.00358381]
[1763561297366,0.5309,3053.7,3053.3,0.00358381]
[1763561297566,0.53093,3053.5,3053.3,0.00358381]
[1763561297766,0.53093,3053.5,3053.3,0.53454381]
[1763561297975,0.00490701,3054.2,3053.7,0.53088]
[1763561298178,0.00490701,3054.2,3054.1,0.53082]
[1763561298566,0.00490701,3054.2,3053.3,0.00358381]
[1763561298567,0.5434,3054.1,3053.3,0.00358381]
[1763561298774,0.5434,3054.1,3053.6,3.2078]
[1763561299069,1.07424,3054.1,3053.7,0.53089]
[1763561299278,0.00490701,3054.2,3053.6,3.2078]
[1763561299677,0.53082,3054.1,3054.0,3.2078]
[1763561300174,0.5434,3054.1,3053.6,3.2078]
[1763561300475,0.53089,3053.7,3053.6,3.2078]
[1763561300869,0.53094,3053.4,3053.3,0.00358381]
[1763561301683,3.2078,3053.9,3053.3,0.00358381]
[1763561302582,0.53094,3053.4,3053.3,0.00358381]
[1763561303282,1.07434,3053.4,3053.3,0.00358381]
[1763561303686,0.53097,3053.2,3053.1,3.2078]
[1763561304085,0.5434,3053.4,3052.6,3.2078]
[1763561304287,0.53106,3052.7,3052.6,3.2078]
[1763561304689,0.53432114,3052.7,3052.6,3.21072628]
[1763561305781,1.06442114,3052.7,3052.6,3.21072628]
[1763561306385,1.06442114,3052.7,3052.6,0.00292628]
[1763561307587,0.53124,3051.7,3051.6,3.2078]
[1763561307790,0.53131,3051.3,3051.2,3.2078]
[1763561308085,0.5301,3051.3,3051.2,3.2078]
[1763561308285,0.53139,3050.8,3050.7,3.2078]
[1763561308586,0.53139,3050.8,3050.7,3.21070795]
[1763561308985,0.5301,3051.3,3050.7,3.21070795]
[1763561309182,0.53136,3051.1,3050.7,3.21070795]
[1763561309384,3.2078,3051.5,3050.9,0.53137]
[1763561309683,0.53132,3051.2,3050.8,0.53139]
[1763561309986,0.53131,3051.3,3050.9,0.53137]
[1763561310185,3.2078,3051.5,3050.7,3.21070795]
[1763561310388,3.2078,3051.9,3051.0,0.53134]
[1763561310579,0.53129,3051.4,3051.1,3.2078]
[1763561310777,0.53501513,3052.0,3051.3,0.53129]
[1763561310982,3.2078,3051.9,3051.3,0.5313]
[1763561311185,3.2078,3051.9,3051.1,3.2078]
[1763561311391,0.00491513,3052.0,3051.9,0.5312]
[1763561311790,0.00491513,3052.0,3051.9,6.5312]
[1763561312086,0.00491513,3052.0,3051.6,3.2078]
[1763561312292,0.00491513,3052.0,3051.9,0.5312]
[1763561312985,3.21106114,3052.7,3052.5,0.5311]
[1763561313192,3.21106114,3052.7,3052.3,3.2078]
[1763561313390,3.74213114,3052.7,3052.4,0.53111]
[1763561313983,0.53111,3052.4,3052.3,3.2078]
[1763561314589,3.73736114,3052.7,3052.3,0.53112]
[1763561314790,3.73736114,3052.7,3052.2,0.00491513]
[1763561315095,0.00326114,3052.7,3052.6,0.53108]
[1763561316294,0.00491513,3052.9,3052.8,0.53104]
[1763561316594,0.00491513,3052.9,3052.8,3.73884]
[1763561316992,0.00491513,3052.9,3052.8,0.53104]
[1763561317293,0.00760994,3052.9,3052.8,0.53104]
[1763561317691,0.00760994,3052.9,3052.2,0.00491513]
[1763561317892,0.53108,3052.6,3052.4,0.53111]
[1763561318093,0.53108,3052.6,3052.3,3.2078]
[1763561318094,3.73885,3052.8,3052.5,0.5311]
[1763561318288,3.2078,3052.8,3052.5,0.5311]
[1763561318491,0.53108,3052.6,3052.3,3.2078]
[1763561318689,0.53111,3052.4,3052.3,3.2078]
[1763561319598,0.53113,3052.3,3052.2,0.00491513]
[1763561319992,3.2078,3052.4,3052.2,0.00491513]
[1763561320293,0.53113,3052.3,3052.2,0.00491513]
[1763561321289,0.5263,3052.0,3050.6,3.2078]
[1763561321487,0.5263,3051.3,3050.8,0.53139]
[1763561321798,0.5263,3051.3,3050.6,3.2078]
[1763561321799,0.53139,3050.8,3050.6,3.2078]
[1763561321996,0.5263,3051.3,3050.6,3.73923]
[1763561322204,0.53139,3050.8,3050.6,3.73923]
[1763561322491,0.53139,3050.8,3050.6,3.2078]
[1763561322697,0.00491513,3051.1,3050.9,0.53137]
[1763561322996,0.00491513,3051.1,3051.0,0.53136]
[1763561323192,0.00491513,3051.1,3051.0,3.73916]
[1763561323390,0.53625513,3051.1,3051.0,3.2078]
[1763561323691,0.00491513,3051.1,3051.0,0.53136]
[1763561323892,0.00491513,3051.1,3050.8,0.53138]
[1763561324087,0.00491513,3051.1,3051.0,0.53136]
[1763561324292,0.00491513,3051.1,3050.7,0.53430795]
[1763561324493,0.00491513,3051.1,3050.7,0.00290795]
[1763561324991,0.00491513,3051.1,3051.0,3.73916]
[1763561328503,0.53625513,3051.1,3051.0,3.2078]
[1763561328799,0.00491513,3051.1,3051.0,3.2078]
[1763561329000,0.53625513,3051.1,3051.0,3.2078]
[1763561329402,1.40315513,3051.1,3051.0,3.2078]
[1763561329603,0.53139,3050.8,3050.7,0.00290795]
[1763561330202,1.39829,3050.8,3050.7,0.00290795]
[1763561330401,0.53148,3050.4,3050.0,0.53152]
[1763561330601,0.53148,3050.3,3050.0,0.53152]
[1763561330908,0.53146,3050.5,3049.8,3.2078]
[1763561331105,3.2078,3050.6,3049.9,0.494]
[1763561331312,0.00491513,3051.1,3050.4,3.2078]
[1763561331503,0.53138,3050.9,3050.7,0.5314]
[1763561331810,0.53138,3050.9,3050.6,0.53143]
[1763561332012,0.00850647,3051.1,3050.4,3.21074183]
[1763561332208,0.00850647,3051.1,3050.7,0.53141]
[1763561332510,0.53986647,3051.1,3050.9,0.53137]
[1763561332700,0.53136,3051.0,3050.4,3.21074183]
[1763561332901,0.00850647,3051.1,3051.0,1.38336]
[1763561333809,3.2078,3051.5,3051.4,1.38329]
[1763561334003,0.53125,3051.7,3051.5,0.53126]
[1763561334310,0.53122,3051.8,3051.6,0.53125]
[1763561334612,0.53121,3051.9,3051.3,3.2078]
[1763561334811,0.00723364,3051.9,3051.6,0.53124]
[1763561335002,0.00723364,3051.9,3051.3,3.70621513]
[1763561335003,0.53843364,3051.9,3051.7,0.53122]
[1763561335704,0.53122,3051.8,3051.5,0.53127]
[1763561336007,0.53122,3051.8,3051.4,0.53127]
[1763561336208,0.53122,3051.8,3051.5,0.53127]
[1763561336408,0.53125,3051.6,3051.3,3.21271513]
[1763561336605,0.00723364,3051.9,3051.3,3.21271513]
[1763561336910,0.00723364,3051.9,3051.8,0.852]
[1763561337113,0.00723364,3051.9,3051.8,1.38322]
[1763561337612,0.53843364,3051.9,3051.3,3.21271513]
[1763561337815,0.00723364,3051.9,3051.8,1.38322]
[1763561338107,0.00723364,3051.9,3051.3,3.21271513]
[1763561338108,1.39819,3051.4,3051.3,0.00491513]
[1763561338299,0.53127,3051.6,3051.3,0.00491513]
[1763561338502,0.00723364,3051.9,3051.6,0.53125]
[1763561338808,0.53844364,3051.9,3051.8,0.852]
[1763561338998,0.00723364,3051.9,3051.8,1.38322]
[1763561339199,0.53843364,3051.9,3051.6,0.53124]
[1763561339404,0.00723364,3051.9,3051.5,3.2078]
[1763561339603,0.00723364,3051.9,3051.8,1.38322]
[1763561339810,0.00723364,3051.9,3051.8,0.852]
[1763561340204,0.53843364,3051.9,3051.8,0.852]
[1763561340405,0.53843364,3051.9,3051.6,0.53125]
[1763561340614,0.00723364,3051.9,3051.5,3.2078]
[1763561340811,0.53129,3051.4,3051.3,0.00491513]
[1763561341809,0.53128,3051.5,3051.3,1.38822513]
[1763561342010,0.53122,3051.8,3051.5,1.30157]
[1763561342213,0.53124,3051.7,3051.5,0.53127]
[1763561342715,0.53843364,3051.9,3051.8,0.7703]
[1763561342915,0.00723364,3051.9,3051.8,1.30152]
[1763561343109,0.53123,3051.8,3051.6,3.2078]
[1763561343315,0.53124,3051.7,3051.6,3.2078]
[1763561343516,0.00723364,3051.9,3051.7,1.30154]
[1763561343517,0.53843364,3051.9,3051.7,1.30154]
[1763561343711,0.53122,3051.8,3051.7,0.7703]
[1763561343917,0.53122,3051.8,3051.6,3.2078]
[1763561344119,0.53128,3051.8,3051.6,3.7391]
[1763561344516,0.53129,3051.7,3051.6,3.2078]
[1763561344713,0.8492,3050.8,3050.2,3.2078]
[1763561345015,0.53149,3050.5,3050.2,3.2078]
[1763561345716,6.00362258,3050.5,3049.7,3.2078]
[1763561345915,2.79582258,3050.5,3049.7,3.2078]
[1763561346117,6.00362258,3050.5,3049.7,3.2078]
[1763561346313,6.00362258,3050.5,3049.7,3.73943]
[1763561346522,11.47213258,3050.5,3049.7,3.2078]
[1763561346714,5.47213258,3050.5,3049.7,3.2078]
[1763561346915,3.2078,3049.8,3049.2,3.2078]
[1763561347220,0.5063,3049.2,3048.7,3.2078]
[1763561347420,3.21271513,3049.8,3049.1,3.2078]
[1763561347723,0.00759495,3049.8,3049.5,3.73946]
[1763561348025,0.00759495,3049.8,3049.1,0.00376644]
[1763561348323,0.53167,3049.6,3049.1,0.53550644]
[1763561348528,0.53171,3049.3,3049.1,0.00376644]
[1763561348728,3.2078,3049.2,3049.1,0.00376644]
[1763561348926,3.2078,3049.7,3049.1,0.00376644]
[1763561349429,0.53171,3049.3,3049.1,0.00376644]
[1763561350029,3.2078,3048.4,3046.9,2.33637864]
[1763561350321,3.2078,3048.4,3046.6,2.92774399]
[1763561350322,0.00491513,3048.0,3047.1,0.4852]
[1763561350513,0.00491513,3048.0,3047.1,0.53208]
[1763561350514,3.2078,3047.7,3047.1,0.53208]
[1763561350723,3.2078,3047.7,3047.4,0.53203]
[1763561350923,3.2078,3047.7,3047.4,0.53515824]
[1763561351125,3.2078,3047.7,3047.4,0.00312824]
[1763561351325,3.2078,3047.7,3047.6,0.532]
[1763561351625,0.00491513,3048.0,3047.8,0.53196]
[1763561351921,0.00491513,3048.0,3047.4,0.00312824]
[1763561352123,3.21271513,3048.0,3047.6,0.53199]
[1763561352318,3.21271513,3048.0,3047.4,0.00312824]
[1763561352523,0.53197,3047.9,3047.4,0.00312824]
[1763561352722,3.2078,3047.6,3047.4,0.00312824]
[1763561352932,3.2112196,3047.6,3047.4,0.00312824]
[1763561353422,0.0034196,3047.6,3047.4,0.00312824]
[1763561354021,0.0034196,3047.6,3047.5,0.53202]
[1763561354222,0.0034196,3047.6,3047.4,0.00312824]
[1763561354420,0.0034196,3047.6,3047.4,0.53515824]
[1763561355023,0.0034196,3047.6,3047.4,0.53516824]
[1763561355425,3.21271513,3048.0,3047.9,0.53195]
[1763561355826,3.2078,3048.7,3048.6,0.53183]
[1763561356630,3.21130975,3048.7,3048.6,0.53183]
[1763561357134,3.21130975,3048.7,3048.5,0.53183]
[1763561357426,3.21130975,3048.7,3048.4,0.53186]
[1763561357635,3.21130975,3048.7,3048.5,0.53184]
[1763561358219,3.21130975,3048.7,3048.5,1.01704]
[1763561358627,0.00350975,3048.7,3048.5,1.01704]
[1763561358827,0.00350975,3048.7,3048.3,0.00491513]
[1763561359327,1.03815,3048.5,3048.3,0.00491513]
[1763561359528,3.2078,3048.4,3048.3,0.00491513]
[1763561360232,0.5063,3047.8,3047.7,3.09924]
[1763561360428,3.2078,3047.2,3044.9,5.54417864]
[1763561360728,3.17995703,3047.5,3045.2,0.62306158]
[1763561360729,3.2078,3045.6,3045.2,0.62306158]
[1763561360926,3.2078,3045.6,3045.2,0.09064158]
[1763561361132,3.74016,3045.6,3045.2,0.09064158]
[1763561361332,3.21183362,3045.6,3045.2,0.09441853]
[1763561361630,3.21183362,3045.6,3044.8,0.4852]
[1763561361828,3.2078,3045.0,3044.8,0.4852]
[1763561362131,0.00403362,3045.6,3045.5,0.53237]
[1763561362430,3.2078,3046.5,3045.6,0.4852]
[1763561362629,3.2078,3046.1,3045.6,0.4852]
[1763561362837,3.2078,3046.1,3045.9,0.53229]
[1763561363228,3.21205691,3046.1,3045.9,0.00408122]
[1763561363729,0.00425691,3046.1,3045.9,3.74417122]
[1763561363931,3.2078,3046.5,3046.4,1.01741]
[1763561364125,3.2078,3047.1,3046.4,3.693]
[1763561364434,3.2078,3047.1,3046.9,0.53212]
[1763561364633,1.26917209,3047.4,3047.2,0.5932]
[1763561365029,1.27261287,3047.4,3047.2,0.5932]
[1763561365541,1.27261287,3047.4,3047.2,1.12527]
[1763561366129,0.00344078,3047.4,3047.3,3.2078]
[1763561366335,3.2078,3048.2,3048.0,0.5932]
[1763561366536,3.2078,3048.2,3048.0,1.12512]
[1763561367029,3.2078,3048.2,3048.0,0.5932]
[1763561367227,3.21204444,3048.2,3048.0,1.12513]
[1763561367528,3.21204444,3048.2,3048.0,0.5932]
[1763561367725,3.21204444,3048.2,3047.8,0.00492328]
[1763561367936,0.53192,3048.1,3047.8,0.00492328]
[1763561368129,3.21204444,3048.2,3047.8,0.00492328]
[1763561368322,0.53194,3048.0,3047.8,0.00492328]
[1763561368727,3.21204444,3048.2,3047.3,0.53205]
[1763561368932,3.2078,3047.6,3047.3,0.53205]
[1763561369237,3.2078,3047.6,3047.2,0.5932]
[1763561369440,3.2078,3047.6,3047.4,0.53203]
[1763561370526,3.2078,3047.6,3047.2,1.13018328]
[1763561370840,3.2078,3047.6,3047.2,0.59812328]
[1763561371331,3.2078,3047.6,3047.4,0.53203]
[1763561371731,3.2078,3047.6,3047.3,0.53205]
[1763561372041,3.2078,3047.6,3047.4,0.53204]
[1763561372736,3.2078,3047.6,3047.4,0.53203]
[1763561373140,0.53202,3047.5,3047.2,0.59812328]
[1763561373341,3.2078,3047.6,3047.2,0.59812328]
[1763561373534,3.2078,3047.6,3047.4,0.53203]
[1763561373736,3.2078,3047.6,3047.2,0.59812328]
[1763561373737,3.2078,3047.6,3047.2,1.13018328]
[1763561373935,3.7398,3047.6,3047.2,0.59812328]
[1763561374236,3.7398,3047.6,3047.2,1.13017328]
[1763561374438,0.53205,3047.3,3047.2,0.00492328]
[1763561374643,0.83923457,3047.3,3046.4,0.4852]
[1763561374844,0.83923457,3047.3,3045.9,0.00408122]
[1763561374845,0.53227,3046.1,3045.9,0.00408122]
[1763561375032,0.53225,3046.2,3045.9,0.00408122]
[1763561375239,0.53225,3046.2,3045.9,0.53638122]
[1763561375436,0.53225,3046.2,3045.9,0.00408122]
[1763561375637,0.53225,3046.2,3045.9,0.53638122]
[1763561375937,3.2078,3046.3,3046.0,0.53227]
[1763561376146,3.74003,3046.3,3046.0,0.53227]
[1763561376444,0.83899187,3046.2,3045.9,0.00408122]
[1763561376643,3.74003,3046.3,3045.9,0.00408122]
[1763561376839,3.2078,3046.3,3046.2,0.53225]
[1763561377145,0.00492328,3046.4,3046.3,0.53223]
[1763561379040,3.74493328,3046.4,3045.9,0.00408122]
[1763561379245,3.21272328,3046.4,3046.1,0.53226]
[1763561379446,3.74493328,3046.4,3046.2,0.53224]
[1763561379640,0.87889957,3046.3,3045.9,0.53228]
[1763561379839,3.2078,3046.0,3045.9,0.5323]
[1763561380346,0.00492328,3046.4,3046.3,0.53223]
[1763561380841,0.0074072,3046.4,3046.3,0.53223]
[1763561381047,4.09139045,3046.4,3046.2,0.53223]
[1763561381351,0.87618325,3046.3,3046.1,0.53226]
[1763561381644,3.2152072,3046.4,3046.3,0.53223]
[1763561381851,4.09108184,3046.4,3046.3,0.53223]
[1763561382046,4.09108184,3046.4,3045.9,0.00318478]
[1763561382243,3.2152072,3046.4,3046.3,0.53223]
[1763561382553,4.09101792,3046.4,3046.3,0.53223]
[1763561383658,4.09101792,3046.4,3045.9,0.00318478]
[1763561383851,0.87581072,3046.3,3046.2,0.53225]
[1763561384255,1.14483333,3047.1,3047.0,0.53211]
[1763561384551,0.87587429,3047.1,3047.0,0.53211]
[1763561384967,3.2078,3047.2,3047.1,0.53209]
[1763561385155,4.08097128,3047.2,3047.1,0.53209]
[1763561385354,4.08338126,3047.2,3047.1,0.53209]
[1763561386459,4.08338126,3047.2,3046.5,2.11269316]
[1763561386658,3.21020998,3047.2,3047.1,0.53209]
[1763561386855,0.00492328,3047.5,3047.4,0.53204]
[1763561387360,3.2078,3047.8,3047.7,0.53198]
[1763561387658,4.08112773,3047.8,3047.7,0.53198]
[1763561387862,4.08388388,3047.8,3047.7,0.53198]
[1763561388163,0.00275615,3047.8,3047.7,0.53198]
[1763561388462,0.00275615,3047.8,3047.5,3.2078]
[1763561388757,0.00275615,3047.8,3047.7,0.53198]
[1763561388958,1.50241029,3047.8,3047.5,3.2078]
[1763561389262,0.87355156,3047.7,3047.4,0.00492328]
[1763561389466,0.8736055,3047.6,3047.0,2.11266316]
[1763561389668,0.53204,3047.4,3047.1,0.53209]
[1763561389858,0.8736055,3047.3,3047.1,0.53209]
[1763561390061,0.53204,3047.4,3047.0,2.11266316]
[1763561390263,0.87344578,3047.3,3047.2,0.53207]
[1763561390564,0.87344578,3047.3,3047.0,2.11266316]
[1763561390756,0.87372841,3047.2,3047.1,0.53209]
[1763561391065,1.14483333,3047.7,3047.1,0.53209]
[1763561391263,0.87373116,3047.6,3047.1,0.53209]
[1763561391566,0.87373116,3047.5,3047.4,0.53203]
[1763561392065,0.53204,3047.4,3047.0,2.11266316]
[1763561392261,0.87373116,3047.3,3047.2,0.53207]
[1763561392462,5.51345948,3047.8,3047.0,1.01255304]
[1763561392655,0.87452516,3047.7,3047.5,0.532]
[1763561392859,0.87452516,3047.6,3047.5,0.532]
[1763561393054,0.87452516,3047.6,3047.0,1.01255304]
[1763561393258,3.2078,3047.4,3047.0,1.01255304]
[1763561393465,3.2078,3047.4,3047.3,0.53205]
[1763561393765,4.08240337,3047.4,3047.3,0.53205]
[1763561393966,0.6261,3047.1,3047.0,1.01255304]
[1763561394564,0.6261,3047.1,3047.0,1.54466304]
[1763561394772,3.2078,3047.4,3047.3,0.53205]
[1763561394959,4.08266773,3047.4,3047.3,0.53205]
[1763561395462,0.87486773,3047.4,3047.0,3.2078]
[1763561395654,3.83665615,3047.8,3047.7,0.53198]
[1763561395854,3.21055615,3047.8,3047.7,0.53198]
[1763561398469,3.21055615,3047.8,3047.4,2.18585988]
[1763561398662,0.00492328,3048.1,3048.0,0.53193]
[1763561399465,0.00492328,3048.1,3048.0,3.73973]
[1763561399667,0.00816916,3048.1,3048.0,3.73973]
[1763561399865,1.77093333,3049.2,3048.0,9.2078]
[1763561399866,0.6261,3049.2,3048.0,9.2078]
[1763561400064,0.6261,3049.2,3049.1,0.53174]
[1763561400758,3.2078,3049.8,3049.7,0.53164]
[1763561400962,3.21144235,3049.8,3049.7,0.53164]
[1763561401361,0.00364235,3049.8,3049.7,0.53164]
[1763561401560,0.00364235,3049.8,3049.7,2.10731988]
[1763561401771,0.00364235,3049.8,3049.7,2.63895988]
[1763561402066,0.6261,3050.6,3050.5,0.5315]
[1763561402259,3.2078,3051.2,3050.6,0.53148]
[1763561402465,0.53139,3051.1,3050.7,0.53146]
[1763561402664,3.2078,3051.2,3050.8,0.53144]
[1763561402865,3.2078,3051.2,3050.9,0.53143]
[1763561403066,3.21025962,3051.2,3050.9,0.53143]
[1763561403265,3.21025962,3051.2,3050.9,0.53141]
[1763561403462,3.74162962,3051.2,3050.7,0.00492328]
[1763561403658,3.2078,3050.8,3050.7,0.00492328]
[1763561404063,0.53151,3050.5,3050.0,0.53158]
[1763561404263,0.53154,3050.3,3049.5,6.4878]
[1763561404567,1.0034,3050.6,3050.3,0.53152]
[1763561404773,1.0034,3050.6,3049.9,1.57567988]
[1763561405172,1.0034,3050.6,3050.2,0.53154]
[1763561405675,0.53152,3050.4,3050.1,0.00492328]
[1763561405872,0.53153,3050.3,3050.1,0.00492328]
[1763561406066,1.0034,3050.6,3050.1,0.00492328]
[1763561406271,0.53154,3050.3,3050.1,0.00492328]
[1763561406471,0.5315,3050.5,3050.1,0.00492328]
[1763561406668,0.53152,3050.4,3050.1,0.53648328]
[1763561406967,3.2078,3050.8,3050.7,0.53146]
[1763561407571,3.21025962,3051.2,3050.5,0.94826988]
[1763561407774,1.0034,3050.6,3050.3,3.2078]
[1763561407966,1.0034,3049.2,3049.1,0.53575831]
[1763561408272,3.2078,3049.2,3049.1,0.53575831]
[1763561409076,0.00492328,3049.5,3049.4,0.53169]
[1763561409278,1.0034,3050.6,3050.3,0.53153]
[1763561409479,1.0034,3050.6,3050.5,0.5315]
[1763561410675,1.0034,3050.6,3050.2,2.11210316]
[1763561410871,3.21272328,3050.9,3050.8,0.53144]
[1763561411482,2.328e-05,3050.9,3050.8,9.73924]
[1763561411676,2.328e-05,3050.9,3050.8,13.02724]
[1763561412179,1.0034,3052.0,3051.8,0.53127]
[1763561413177,1.00569869,3052.0,3051.8,0.53366435]
[1763561413375,0.00229869,3052.0,3051.8,0.53366435]
[1763561413778,0.00229869,3052.0,3051.8,3.286]
[1763561414178,0.00229869,3052.0,3051.8,3.81727]
[1763561414681,0.00229869,3052.0,3051.9,3.285]
[1763561415988,0.00229869,3052.0,3051.8,0.53466393]
[1763561416193,0.00229869,3052.0,3051.9,0.53125]
[1763561416782,0.00229869,3052.0,3051.8,3.283]
[1763561416971,1.00569869,3052.0,3051.8,3.283]
[1763561417176,1.00569869,3052.0,3051.9,0.53125]
[1763561417477,0.00229869,3052.0,3051.9,0.53125]
[1763561417876,0.00229869,3052.0,3051.9,0.535177]
[1763561418283,0.00229869,3052.0,3051.9,3.815177]
[1763561419578,3.2078,3052.7,3052.6,0.53113]
[1763561419881,3.2078,3052.7,3051.9,7.55195108]
[1763561420182,3.2078,3052.7,3052.6,0.53113]
[1763561420579,3.21101996,3052.7,3052.6,0.53113]
[1763561421682,3.21101996,3052.7,3052.6,3.80813]
[1763561422273,0.00491497,3053.0,3052.6,3.277]
[1763561422480,3.2078,3053.3,3052.6,9.40235338]
[1763561422776,3.2078,3053.7,3053.2,0.53103]
[1763561423087,3.2078,3053.7,3053.0,3.2078]
[1763561423481,3.2152017,3053.7,3053.6,0.53096]
[1763561423687,3.2152017,3053.7,3053.6,1.407]
[1763561423873,1.0034,3053.4,3053.3,0.53101]
[1763561424188,1.0034,3053.4,3053.3,3.80601]
[1763561425082,1.0034,3053.4,3052.6,0.042]
[1763561425284,3.2078,3053.1,3052.7,3.274]
[1763561425791,1.1952,3052.7,3052.6,0.57313]
[1763561425988,1.1952,3052.7,3052.4,0.53117]
[1763561425989,4.403,3052.7,3052.4,0.53117]
[1763561426286,4.403,3052.7,3052.5,0.53115]
[1763561426676,4.403,3052.7,3052.6,0.53113]
[1763561426885,4.403,3052.7,3052.4,0.53117]
[1763561427085,4.403,3052.7,3051.9,0.003927]
[1763561427086,0.53117,3052.4,3051.9,0.003927]
[1763561427276,4.403,3052.7,3050.7,3.2078]
[1763561427277,1.1952,3051.3,3050.7,3.2078]
[1763561427483,3.2078,3051.1,3051.0,0.53141]
[1763561427684,1.1952,3051.3,3051.2,0.53137]
[1763561428282,1.19941427,3051.3,3051.2,0.53475022]
[1763561428483,1.19941427,3051.3,3051.2,0.00338022]
[1763561428884,1.19941427,3051.3,3051.0,0.0626501]
[1763561429084,1.19941427,3051.3,3051.2,0.53137]
[1763561429592,1.19941427,3051.3,3051.0,0.0626501]
[1763561429994,1.19941427,3051.3,3051.0,0.00317112]
[1763561430294,3.2078,3051.1,3051.0,0.00317112]
[1763561430792,3.73919,3051.1,3050.0,3.2078]
[1763561430997,3.2078,3050.5,3050.4,0.53151]
[1763561431887,3.2078,3050.5,3050.4,0.53496035]
[1763561432087,3.2078,3050.5,3050.0,5.47081119]
[1763561432302,3.2078,3050.5,3050.4,0.53151]
[1763561432792,1.19941427,3051.3,3051.2,0.53137]
[1763561432991,3.2078,3051.4,3051.2,0.00336246]
[1763561433199,0.00491497,3051.6,3051.5,0.53132]
[1763561434095,0.0075544,3051.6,3051.5,0.53132]
[1763561434293,0.0075544,3051.6,3051.5,3.80132]
[1763561436193,0.0075544,3051.6,3051.5,0.53132]
[1763561437697,1.1952,3052.7,3052.6,0.53113]
[1763561438101,1.1824,3052.0,3051.7,0.53127]
[1763561438400,1.1824,3052.0,3051.6,3.73909]
[1763561438603,1.1824,3051.3,3051.2,3.21116246]
[1763561439001,1.1824,3051.3,3051.2,0.00336246]
[1763561439405,1.1824,3051.3,3051.2,0.53473246]
[1763561439602,1.1824,3051.3,3051.2,0.00336246]
[1763561439997,1.1824,3051.3,3051.2,0.53473246]
[1763561440492,1.1824,3051.3,3050.9,0.53632497]
[1763561440689,1.1824,3051.3,3051.1,0.53139]
[1763561441000,1.1824,3051.3,3051.2,0.53137]
[1763561441202,3.0088,3051.3,3051.2,0.53137]
[1763561441604,3.0088,3051.3,3051.2,0.53547546]
[1763561441897,1.1824,3051.3,3051.2,0.53547546]